[Event "Turkish Women-ch Arzum 2022"]
[Site "Ayvalik"]
[Date "2022.03.05"]
[Round "1.17"]
[White "Yalcin, Fahriye Zeynep"]
[Black "Kalayci, Nino"]
[Result "0-1"]
[ECO "C01"]
[WhiteElo "1260"]
[BlackElo "1775"]
[Annotator "NA"]
[PlyCount "136"]
[EventDate "2022.03.04"]
[EventType "swiss"]
[EventCountry "TUR"]
[SourceTitle "playchess.com"]
[Source "ChessBase"]
[SourceQuality "1"]
[TimeControl "5400+30"]

1. e4 {[%emt 0:01:00]} e6 {[%emt 0:01:00]} 2. d4 {[%emt 0:00:30]} d5 {[%emt 0:00:00]} 3. exd5 {[%emt 0:00:00]} exd5 {[%emt 0:00:00]} 4. Nf3 {[%emt 0:01:00]} Nf6 {[%emt 0:00:00]} 5. Bd3 {[%emt 0:01:30]} Bd6 {[%emt 0:00:00]} 6. Nc3 {[%emt 0:00:30]} O-O {[%emt 0:00:30]} 7. O-O {[%emt 0:00:30]} c6 {[%emt 0:02:30]} 8. Re1 {[%emt 0:09:30]} Bg4 {[%emt 0:00:30]} 9. Be3 {[%emt 0:12:30]} Nbd7 {[%emt 0:00:30]} 10. Be2 {[%emt 0:07:30]} Qc7 {[%emt 0:03:30]} 11. h3 {[%emt 0:06:30]} Bh5 {[%emt 0:00:30]} 12. Ng5 {[%emt 0:10:30]} Bxe2 {[%emt 0:11:30]} 13. Rxe2 {[%emt 0:00:30]} h6 {[%emt 0:03:30]} 14. Nf3 {[%emt 0:01:30]} Ne4 {[%emt 0:13:30]} 15. Qd3 {[%emt 0:06:30]} Ndf6 {[%emt 0:14:30]} 16. Rae1 {[%emt 0:05:30]} Qb6 {[%emt 0:14:30]} 17. Bc1 {[%emt 0:05:30]} Qa5 {[%emt 0:03:30]} 18. a3 {[%emt 0:06:30]} Bxa3 {[%emt 0:11:49]} 19. Ne5 {[%emt 0:01:30]} Bb4 {[%emt 0:06:18]} 20. Bxh6 {[%emt 0:08:30]} gxh6 {[%emt 0:07:08]} 21. Nxe4 {[%emt 0:07:19]} dxe4 {[%emt 0:00:54]} 22. Qg3+ {[%emt 0:00:08]} Kh7 {[%emt 0:01:00]} 23. c3 {[%emt 0:06:26]} Bd6 {[%emt 0:02:51]} 24. Qf4 {[%emt 0:00:12]} Qd8 {[%emt 0:01:35]} 25. Qf5+ {[%emt 0:00:44]} Kh8 {[%emt 0:00:13]} 26. Qf4 {[%emt 0:00:02]} Bxe5 {[%emt 0:00:57]} 27. Qxh6+ {[%emt 0:00:42]} Nh7 {[%emt 0:00:02]} 28. dxe5 {[%emt 0:00:05]} Qg5 {[%emt 0:01:00]} 29. Qxg5 {[%emt 0:00:45]} Nxg5 {[%emt 0:00:30]} 30. h4 {[%emt 0:00:30]} Ne6 {[%emt 0:00:00]} 31. Rxe4 {[%emt 0:00:00]} Rg8 {[%emt 0:00:12]} 32. f4 {[%emt 0:00:30]} Rad8 {[%emt 0:01:17]} 33. b4 {[%emt 0:01:26]} Rd2 {[%emt 0:00:16]} 34. f5 {[%emt 0:00:26]} Rgxg2+ {[%emt 0:00:33]} 35. Kh1 {[%emt 0:00:16]} Ng7 {[%emt 0:00:47]} 36. e6 {[%emt 0:00:49]} fxe6 {[%emt 0:00:30]} 37. fxe6 {[%emt 0:00:03]} Ne8 {[%emt 0:00:00]} 38. Rf4 {[%emt 0:00:50]} Rgf2 {[%emt 0:00:59]} 39. Rf7 {[%emt 0:00:35]} Nd6 {[%emt 0:00:36]} 40. Rxf2 {[%emt 0:00:51]} Rxf2 {[%emt 0:00:30]} 41. e7 {[%emt 0:00:30]} Ne8 {[%emt 0:00:00]} 42. Rd1 {[%emt 0:00:00]} Kg7 {[%emt 0:00:48]} 43. Rd7 {[%emt 0:00:12]} b5 {[%emt 0:00:39]} 44. Rxa7 {[%emt 0:00:30]} Rc2 {[%emt 0:00:30]} 45. h5 {[%emt 0:00:30]} Rxc3 {[%emt 0:00:00]} 46. Kg2 {[%emt 0:00:00]} Re3 {[%emt 0:00:25]} 47. Ra6 {[%emt 0:01:05]} Re6 {[%emt 0:00:08]} 48. Kf3 {[%emt 0:00:31]} Nf6 {[%emt 0:01:14]} 49. Ra7 {[%emt 0:00:38]} Kf7 {[%emt 0:00:28]} 50. h6 {[%emt 0:00:45]} Rxe7 {[%emt 0:00:35]} 51. Rxe7+ {[%emt 0:00:43]} Kxe7 {[%emt 0:00:30]} 52. h7 {[%emt 0:00:30]} Nxh7 {[%emt 0:00:30]} 53. Ke3 {[%emt 0:00:30]} Kd6 {[%emt 0:00:30]} 54. Kd4 {[%emt 0:00:30]} Nf6 {[%emt 0:00:30]} 55. Kd3 {[%emt 0:00:30]} Nd5 {[%emt 0:00:30]} 56. Kc2 {[%emt 0:00:30]} Nxb4+ {[%emt 0:00:30]} 57. Kb3 {[%emt 0:00:30]} c5 {[%emt 0:00:30]} 58. Kc3 {[%emt 0:00:30]} Kd5 {[%emt 0:00:30]} 59. Kb3 {[%emt 0:00:30]} Kd4 {[%emt 0:00:30]} 60. Kb2 {[%emt 0:00:30]} Kd3 {[%emt 0:00:30]} 61. Kc1 {[%emt 0:00:30]} c4 {[%emt 0:00:30]} 62. Kb2 {[%emt 0:00:30]} c3+ {[%emt 0:00:30]} 63. Kb3 {[%emt 0:00:30]} c2 {[%emt 0:00:30]} 64. Kxb4 {[%emt 0:00:30]} c1=Q {[%emt 0:00:30]} 65. Kxb5 {[%emt 0:00:30]} Kd4 {[%emt 0:00:30]} 66. Ka4 {[%emt 0:00:30]} Qb2 {[%emt 0:00:30]} 67. Ka5 {[%emt 0:00:30]} Kc5 {[%emt 0:00:30]} 68. Ka4 {[%emt 0:00:30]} Qb4# {[%emt 0:00:30]} 0-1

[Event "Turkish Women-ch Arzum 2022"]
[Site "Ayvalik"]
[Date "2022.03.05"]
[Round "1.18"]
[White "Incecik, Seyma Zeynep"]
[Black "Aksoy, Duru"]
[Result "1/2-1/2"]
[ECO "B27"]
[WhiteElo "1777"]
[BlackElo "1223"]
[Annotator "NA"]
[PlyCount "76"]
[EventDate "2022.03.04"]
[EventType "swiss"]
[EventCountry "TUR"]
[SourceTitle "playchess.com"]
[Source "ChessBase"]
[SourceQuality "1"]
[TimeControl "5400+30"]

1. e4 {[%emt 0:01:00]} c5 {[%emt 0:01:00]} 2. Nf3 {[%emt 0:00:30]} g6 {[%emt 0:00:00]} 3. d4 {[%emt 0:00:30]} cxd4 {[%emt 0:01:00]} 4. Qxd4 {[%emt 0:02:30]} Nf6 {[%emt 0:01:30]} 5. Nc3 {[%emt 0:03:30]} Nc6 {[%emt 0:02:30]} 6. Qd3 {[%emt 0:03:30]} Bg7 {[%emt 0:02:30]} 7. Bg5 {[%emt 0:02:30]} O-O {[%emt 0:03:30]} 8. O-O-O {[%emt 0:04:30]} Qa5 {[%emt 0:03:30]} 9. Qb5 {[%emt 0:05:30]} Qxb5 {[%emt 0:08:30]} 10. Bxb5 {[%emt 0:00:30]} a6 {[%emt 0:01:30]} 11. Bd3 {[%emt 0:23:30]} d6 {[%emt 0:10:30]} 12. Nd5 {[%emt 0:03:30]} Bd7 {[%emt 0:06:30]} 13. Nxf6+ {[%emt 0:06:30]} exf6 {[%emt 0:03:30]} 14. Bf4 {[%emt 0:00:30]} Ne5 {[%emt 0:01:30]} 15. Be2 {[%emt 0:01:30]} Rac8 {[%emt 0:06:30]} 16. Rxd6 {[%emt 0:05:30]} Bc6 {[%emt 0:03:30]} 17. Rd4 {[%emt 0:24:40]} Rfe8 {[%emt 0:05:30]} 18. Re1 {[%emt 0:03:54]} Ng4 {[%emt 0:03:30]} 19. Bg3 {[%emt 0:03:24]} f5 {[%emt 0:01:30]} 20. e5 {[%emt 0:00:29]} Nxe5 {[%emt 0:00:00]} 21. Nxe5 {[%emt 0:00:35]} Bxe5 {[%emt 0:00:00]} 22. Bxe5 {[%emt 0:00:00]} Rxe5 {[%emt 0:00:30]} 23. f4 {[%emt 0:01:18]} Re3 {[%emt 0:01:30]} 24. Rd3 {[%emt 0:01:56]} Rxd3 {[%emt 0:00:30]} 25. Bxd3 {[%emt 0:00:04]} Bxg2 {[%emt 0:01:30]} 26. Rg1 {[%emt 0:00:07]} Be4 {[%emt 0:00:00]} 27. Kd2 {[%emt 0:00:34]} Kg7 {[%emt 0:01:00]} 28. Re1 {[%emt 0:00:26]} Re8 {[%emt 0:01:30]} 29. Rg1 {[%emt 0:00:20]} h6 {[%emt 0:00:00]} 30. a3 {[%emt 0:00:42]} Kf6 {[%emt 0:00:00]} 31. h4 {[%emt 0:00:00]} Rg8 {[%emt 0:01:30]} 32. Bxe4 {[%emt 0:00:32]} fxe4 {[%emt 0:00:30]} 33. Ke3 {[%emt 0:00:09]} Kf5 {[%emt 0:00:30]} 34. Rd1 {[%emt 0:00:18]} Kg4 {[%emt 0:02:30]} 35. Rg1+ {[%emt 0:00:56]} Kf5 {[%emt 0:01:30]} 36. Rd1 {[%emt 0:00:37]} Kg4 {[%emt 0:00:00]} 37. Rg1+ {[%emt 0:01:39]} Kf5 {[%emt 0:00:00]} 38. Rd1 {[%emt 0:00:13]} Kg4 {[%emt 0:00:30]} 1/2-1/2

[Event "Turkish Women-ch Arzum 2022"]
[Site "Ayvalik"]
[Date "2022.03.05"]
[Round "1.19"]
[White "Bassari, Senem Gul"]
[Black "Baloglu, Dila"]
[Result "0-1"]
[ECO "C02"]
[WhiteElo "1197"]
[BlackElo "1630"]
[Annotator "NA"]
[PlyCount "120"]
[EventDate "2022.03.04"]
[EventType "swiss"]
[EventCountry "TUR"]
[SourceTitle "playchess.com"]
[Source "ChessBase"]
[SourceQuality "1"]
[TimeControl "5400+30"]

1. e4 {[%emt 0:01:00]} e6 {[%emt 0:01:00]} 2. d4 {[%emt 0:00:30]} d5 {[%emt 0:00:30]} 3. e5 {[%emt 0:00:00]} c5 {[%emt 0:00:30]} 4. c3 {[%emt 0:00:00]} Nc6 {[%emt 0:02:30]} 5. Nf3 {[%emt 0:00:00]} Qb6 {[%emt 0:03:30]} 6. Na3 {[%emt 0:00:00]} cxd4 {[%emt 0:10:30]} 7. cxd4 {[%emt 0:00:00]} Bd7 {[%emt 0:07:30]} 8. Nc2 {[%emt 0:01:00]} Rc8 {[%emt 0:02:30]} 9. Bd3 {[%emt 0:01:30]} Nb4 {[%emt 0:02:30]} 10. Nxb4 {[%emt 0:02:30]} Bxb4+ {[%emt 0:00:30]} 11. Bd2 {[%emt 0:00:30]} Ne7 {[%emt 0:02:30]} 12. O-O {[%emt 0:03:30]} Bxd2 {[%emt 0:03:30]} 13. Qxd2 {[%emt 0:00:00]} Bb5 {[%emt 0:03:30]} 14. Bxb5+ {[%emt 0:08:00]} Qxb5 {[%emt 0:00:30]} 15. Qg5 {[%emt 0:05:30]} Nf5 {[%emt 0:05:30]} 16. Rac1 {[%emt 0:13:30]} Rxc1 {[%emt 0:11:30]} 17. Qxc1 {[%emt 0:06:30]} O-O {[%emt 0:05:30]} 18. Qc2 {[%emt 0:03:30]} h6 {[%emt 0:14:30]} 19. Rc1 {[%emt 0:07:30]} Ne7 {[%emt 0:03:15]} 20. Qd2 {[%emt 0:02:30]} Rc8 {[%emt 0:04:49]} 21. Rxc8+ {[%emt 0:00:30]} Nxc8 {[%emt 0:00:06]} 22. Ne1 {[%emt 0:02:30]} Nb6 {[%emt 0:01:54]} 23. b3 {[%emt 0:01:30]} Nc8 {[%emt 0:02:01]} 24. Nd3 {[%emt 0:07:30]} Ne7 {[%emt 0:01:04]} 25. Qc3 {[%emt 0:06:30]} Nc6 {[%emt 0:02:57]} 26. h3 {[%emt 0:05:30]} Qa6 {[%emt 0:02:43]} 27. Nc5 {[%emt 0:05:03]} Qxa2 {[%emt 0:03:19]} 28. Nxb7 {[%emt 0:00:49]} Qa6 {[%emt 0:00:41]} 29. Nc5 {[%emt 0:00:32]} Qb5 {[%emt 0:00:48]} 30. Kh2 {[%emt 0:08:02]} a5 {[%emt 0:01:05]} 31. Na4 {[%emt 0:05:23]} Ne7 {[%emt 0:01:01]} 32. Nc5 {[%emt 0:01:01]} Qb4 {[%emt 0:01:05]} 33. Qa1 {[%emt 0:03:59]} Nf5 {[%emt 0:00:28]} 34. Qa4 {[%emt 0:00:19]} Qxd4 {[%emt 0:00:54]} 35. Qxd4 {[%emt 0:00:50]} Nxd4 {[%emt 0:00:01]} 36. Kg3 {[%emt 0:00:36]} Kf8 {[%emt 0:00:16]} 37. Kf4 {[%emt 0:00:23]} Ke7 {[%emt 0:00:12]} 38. Ke3 {[%emt 0:00:24]} Nc6 {[%emt 0:00:06]} 39. f4 {[%emt 0:00:02]} Kd8 {[%emt 0:00:59]} 40. Na4 {[%emt 0:00:44]} Kc7 {[%emt 0:00:40]} 41. Kd3 {[%emt 0:00:23]} Nb4+ {[%emt 0:00:11]} 42. Kc3 {[%emt 0:00:34]} Kc6 {[%emt 0:00:45]} 43. Kd4 {[%emt 0:00:13]} Nc2+ {[%emt 0:00:14]} 44. Kc3 {[%emt 0:00:54]} Ne3 {[%emt 0:01:03]} 45. g4 {[%emt 0:00:30]} Kb5 {[%emt 0:01:10]} 46. g5 {[%emt 0:00:41]} h5 {[%emt 0:00:34]} 47. g6 {[%emt 0:00:59]} fxg6 {[%emt 0:00:30]} 48. Kd4 {[%emt 0:00:30]} Nf5+ {[%emt 0:00:30]} 49. Kc3 {[%emt 0:00:00]} d4+ {[%emt 0:00:00]} 50. Kd3 {[%emt 0:00:00]} Kb4 {[%emt 0:00:00]} 51. Kc2 {[%emt 0:00:05]} h4 {[%emt 0:00:00]} 52. Kd3 {[%emt 0:00:44]} Kxb3 {[%emt 0:00:44]} 53. Nc5+ {[%emt 0:00:05]} Kb4 {[%emt 0:00:32]} 54. Nxe6 {[%emt 0:00:30]} a4 {[%emt 0:00:00]} 55. Nxd4 {[%emt 0:00:35]} Nxd4 {[%emt 0:00:03]} 56. Kxd4 {[%emt 0:00:00]} a3 {[%emt 0:00:00]} 57. e6 {[%emt 0:01:04]} a2 {[%emt 0:00:11]} 58. Kd5 {[%emt 0:00:30]} a1=Q {[%emt 0:00:30]} 59. e7 {[%emt 0:00:00]} Qa8+ {[%emt 0:00:00]} 60. Ke6 {[%emt 0:00:00]} Qe8 {[%emt 0:00:00]} 0-1

[Event "Turkish Women-ch Arzum 2022"]
[Site "Ayvalik"]
[Date "2022.03.05"]
[Round "1.20"]
[White "Bese, Irem"]
[Black "Dal, Nurseda"]
[Result "1-0"]
[ECO "C92"]
[WhiteElo "1714"]
[BlackElo "1116"]
[Annotator "NA"]
[PlyCount "69"]
[EventDate "2022.03.04"]
[EventType "swiss"]
[EventCountry "TUR"]
[SourceTitle "playchess.com"]
[Source "ChessBase"]
[SourceQuality "1"]
[TimeControl "5400+30"]

1. e4 {[%emt 0:01:00]} e5 {[%emt 0:01:00]} 2. Nf3 {[%emt 0:00:30]} Nc6 {[%emt 0:00:00]} 3. Bb5 {[%emt 0:00:00]} a6 {[%emt 0:00:00]} 4. Ba4 {[%emt 0:00:00]} Nf6 {[%emt 0:00:30]} 5. O-O {[%emt 0:00:30]} b5 {[%emt 0:00:00]} 6. Bb3 {[%emt 0:00:00]} d6 {[%emt 0:00:00]} 7. c3 {[%emt 0:00:00]} Be7 {[%emt 0:02:30]} 8. h3 {[%emt 0:00:30]} O-O {[%emt 0:00:30]} 9. Re1 {[%emt 0:00:30]} Be6 {[%emt 0:00:30]} 10. Bc2 {[%emt 0:01:30]} Re8 {[%emt 0:02:30]} 11. d3 {[%emt 0:01:30]} h6 {[%emt 0:00:30]} 12. Nbd2 {[%emt 0:00:30]} Bf8 {[%emt 0:00:30]} 13. Nf1 {[%emt 0:01:30]} Ne7 {[%emt 0:00:30]} 14. Ng3 {[%emt 0:00:30]} c5 {[%emt 0:00:30]} 15. d4 {[%emt 0:00:30]} cxd4 {[%emt 0:02:30]} 16. cxd4 {[%emt 0:01:30]} Ng6 {[%emt 0:00:30]} 17. a4 {[%emt 0:02:30]} Qc7 {[%emt 0:01:30]} 18. d5 {[%emt 0:02:30]} Bd7 {[%emt 0:00:30]} 19. a5 {[%emt 0:03:30]} b4 {[%emt 0:01:30]} 20. Be3 {[%emt 0:02:30]} Rec8 {[%emt 0:03:30]} 21. Bd3 {[%emt 0:00:30]} Bb5 {[%emt 0:06:30]} 22. Bxb5 {[%emt 0:11:30]} axb5 {[%emt 0:00:00]} 23. Qb3 {[%emt 0:04:30]} Qc4 {[%emt 0:09:00]} 24. Nd2 {[%emt 0:03:30]} Qxb3 {[%emt 0:00:30]} 25. Nxb3 {[%emt 0:00:00]} Ra6 {[%emt 0:02:30]} 26. Rec1 {[%emt 0:03:00]} Rca8 {[%emt 0:06:30]} 27. f3 {[%emt 0:05:30]} Ne7 {[%emt 0:03:30]} 28. Rd1 {[%emt 0:08:30]} Nd7 {[%emt 0:03:30]} 29. Rac1 {[%emt 0:03:30]} Rc8 {[%emt 0:02:30]} 30. Rxc8 {[%emt 0:04:30]} Nxc8 {[%emt 0:00:00]} 31. Rc1 {[%emt 0:00:30]} Nc5 {[%emt 0:06:00]} 32. Nxc5 {[%emt 0:02:30]} dxc5 {[%emt 0:00:30]} 33. Bxc5 {[%emt 0:01:30]} Bxc5+ {[%emt 0:00:30]} 34. Rxc5 {[%emt 0:00:30]} Na7 {[%emt 0:01:30]} 35. Nf5 {[%emt 0:01:30]} 1-0

[Event "Turkish Women-ch Arzum 2022"]
[Site "Ayvalik"]
[Date "2022.03.05"]
[Round "1.21"]
[White "Topal, Berfin"]
[Black "Yurdakul, Didem Nuray"]
[Result "0-1"]
[ECO "B23"]
[WhiteElo "1322"]
[BlackElo "1804"]
[Annotator "NA"]
[PlyCount "72"]
[EventDate "2022.03.04"]
[EventType "swiss"]
[EventCountry "TUR"]
[SourceTitle "playchess.com"]
[Source "ChessBase"]
[SourceQuality "1"]
[TimeControl "5400+30"]

1. e4 {[%emt 0:01:00]} c5 {[%emt 0:01:00]} 2. Nc3 {[%emt 0:00:30]} d6 {[%emt 0:00:00]} 3. Bc4 {[%emt 0:00:00]} Nf6 {[%emt 0:00:00]} 4. f4 {[%emt 0:00:00]} Bg4 {[%emt 0:00:30]} 5. Nf3 {[%emt 0:00:00]} Nc6 {[%emt 0:00:30]} 6. h3 {[%emt 0:01:00]} Bxf3 {[%emt 0:00:30]} 7. Qxf3 {[%emt 0:00:30]} Nd4 {[%emt 0:00:00]} 8. Qd1 {[%emt 0:01:30]} e6 {[%emt 0:01:00]} 9. d3 {[%emt 0:02:30]} a6 {[%emt 0:02:30]} 10. a3 {[%emt 0:03:30]} b5 {[%emt 0:00:00]} 11. Ba2 {[%emt 0:00:30]} Be7 {[%emt 0:00:00]} 12. Ne2 {[%emt 0:06:30]} Nc6 {[%emt 0:01:30]} 13. O-O {[%emt 0:03:30]} O-O {[%emt 0:00:30]} 14. Be3 {[%emt 0:03:30]} d5 {[%emt 0:02:30]} 15. e5 {[%emt 0:03:30]} Nd7 {[%emt 0:00:30]} 16. c3 {[%emt 0:01:30]} a5 {[%emt 0:02:30]} 17. d4 {[%emt 0:03:30]} c4 {[%emt 0:04:30]} 18. Ng3 {[%emt 0:04:30]} Bh4 {[%emt 0:09:30]} 19. Nh1 {[%emt 0:05:30]} Be7 {[%emt 0:03:30]} 20. Qg4 {[%emt 0:04:30]} Qb6 {[%emt 0:02:30]} 21. Rf3 {[%emt 0:03:30]} b4 {[%emt 0:05:30]} 22. Ng3 {[%emt 0:07:30]} Ra7 {[%emt 0:06:30]} 23. f5 {[%emt 0:07:30]} exf5 {[%emt 0:03:30]} 24. Nxf5 {[%emt 0:01:30]} g6 {[%emt 0:00:30]} 25. Nxe7+ {[%emt 0:06:30]} Nxe7 {[%emt 0:00:30]} 26. axb4 {[%emt 0:05:30]} axb4 {[%emt 0:00:30]} 27. cxb4 {[%emt 0:01:30]} Qxb4 {[%emt 0:03:30]} 28. Raf1 {[%emt 0:01:30]} h5 {[%emt 0:03:30]} 29. Qg5 {[%emt 0:02:30]} Rxa2 {[%emt 0:12:30]} 30. e6 {[%emt 0:02:55]} fxe6 {[%emt 0:08:30]} 31. Rxf8+ {[%emt 0:00:31]} Nxf8 {[%emt 0:00:00]} 32. Qf6 {[%emt 0:00:43]} Nf5 {[%emt 0:00:00]} 33. g4 {[%emt 0:06:45]} hxg4 {[%emt 0:00:30]} 34. hxg4 {[%emt 0:00:17]} Qxb2 {[%emt 0:00:30]} 35. Rf2 {[%emt 0:01:24]} Qb1+ {[%emt 0:00:30]} 36. Rf1 {[%emt 0:00:28]} Qe4 {[%emt 0:00:30]} 0-1

[Event "Turkish Women-ch Arzum 2022"]
[Site "Ayvalik"]
[Date "2022.03.05"]
[Round "1.22"]
[White "Akin, Duru"]
[Black "Sahin, Cagla Yudum"]
[Result "1-0"]
[ECO "C56"]
[WhiteElo "1563"]
[BlackElo "1162"]
[Annotator "NA"]
[PlyCount "61"]
[EventDate "2022.03.04"]
[EventType "swiss"]
[EventCountry "TUR"]
[SourceTitle "playchess.com"]
[Source "ChessBase"]
[SourceQuality "1"]
[TimeControl "5400+30"]

1. e4 {[%emt 0:01:00]} e5 {[%emt 0:01:00]} 2. Nf3 {[%emt 0:00:30]} Nc6 {[%emt 0:00:30]} 3. d4 {[%emt 0:00:00]} exd4 {[%emt 0:00:00]} 4. Bc4 {[%emt 0:00:00]} Nf6 {[%emt 0:00:00]} 5. e5 {[%emt 0:00:00]} d5 {[%emt 0:00:30]} 6. Bb5 {[%emt 0:00:00]} Ne4 {[%emt 0:00:30]} 7. Nxd4 {[%emt 0:00:00]} Bd7 {[%emt 0:04:30]} 8. Bxc6 {[%emt 0:00:00]} bxc6 {[%emt 0:01:30]} 9. O-O {[%emt 0:00:00]} g6 {[%emt 0:09:30]} 10. f3 {[%emt 0:03:00]} Nc5 {[%emt 0:10:30]} 11. Be3 {[%emt 0:00:30]} Ne6 {[%emt 0:02:30]} 12. Nb3 {[%emt 0:04:30]} Ng7 {[%emt 0:07:30]} 13. Bh6 {[%emt 0:00:30]} Ne6 {[%emt 0:09:30]} 14. Bxf8 {[%emt 0:03:30]} Nxf8 {[%emt 0:00:30]} 15. f4 {[%emt 0:00:00]} h5 {[%emt 0:03:30]} 16. Nc3 {[%emt 0:01:00]} Bg4 {[%emt 0:03:30]} 17. Qd2 {[%emt 0:00:30]} Ne6 {[%emt 0:02:30]} 18. h3 {[%emt 0:06:30]} Bf5 {[%emt 0:03:30]} 19. Ne2 {[%emt 0:00:30]} Qe7 {[%emt 0:12:30]} 20. Ned4 {[%emt 0:03:30]} Nxd4 {[%emt 0:00:30]} 21. Qxd4 {[%emt 0:00:00]} O-O {[%emt 0:00:30]} 22. Qc3 {[%emt 0:04:00]} Bd7 {[%emt 0:05:30]} 23. Nc5 {[%emt 0:00:30]} Bf5 {[%emt 0:00:30]} 24. Rae1 {[%emt 0:00:30]} Rae8 {[%emt 0:03:15]} 25. b4 {[%emt 0:01:30]} Qh4 {[%emt 0:02:46]} 26. Nb3 {[%emt 0:00:00]} Rd8 {[%emt 0:01:43]} 27. Nd4 {[%emt 0:02:00]} Be4 {[%emt 0:05:10]} 28. Nxc6 {[%emt 0:01:30]} Rd7 {[%emt 0:01:24]} 29. Nd4 {[%emt 0:00:30]} Re8 {[%emt 0:01:12]} 30. Kh2 {[%emt 0:01:30]} Kh7 {[%emt 0:04:53]} 31. Nc6 {[%emt 0:00:30]} 1-0

[Event "Turkish Women-ch Arzum 2022"]
[Site "Ayvalik"]
[Date "2022.03.05"]
[Round "1.23"]
[White "Guleryuz, Zeynep"]
[Black "Buyuk, Ecrin Efsa"]
[Result "0-1"]
[ECO "B12"]
[WhiteElo "1186"]
[BlackElo "1565"]
[Annotator "NA"]
[PlyCount "112"]
[EventDate "2022.03.04"]
[EventType "swiss"]
[EventCountry "TUR"]
[SourceTitle "playchess.com"]
[Source "ChessBase"]
[SourceQuality "1"]
[TimeControl "5400+30"]

1. e4 {[%emt 0:01:00]} c6 {[%emt 0:01:00]} 2. d4 {[%emt 0:00:30]} d5 {[%emt 0:00:00]} 3. e5 {[%emt 0:00:00]} Bf5 {[%emt 0:00:00]} 4. Nf3 {[%emt 0:00:00]} e6 {[%emt 0:00:00]} 5. Bd3 {[%emt 0:02:30]} Bxd3 {[%emt 0:01:00]} 6. Qxd3 {[%emt 0:00:30]} Nd7 {[%emt 0:00:30]} 7. Be3 {[%emt 0:03:30]} Ne7 {[%emt 0:00:30]} 8. Nh4 {[%emt 0:04:30]} c5 {[%emt 0:07:30]} 9. c3 {[%emt 0:00:30]} Rc8 {[%emt 0:03:30]} 10. Na3 {[%emt 0:06:30]} Nc6 {[%emt 0:05:30]} 11. Nf3 {[%emt 0:01:30]} Be7 {[%emt 0:06:30]} 12. O-O {[%emt 0:01:30]} O-O {[%emt 0:01:30]} 13. Nc2 {[%emt 0:03:30]} c4 {[%emt 0:02:30]} 14. Qd2 {[%emt 0:07:30]} f6 {[%emt 0:05:30]} 15. exf6 {[%emt 0:12:30]} Nxf6 {[%emt 0:00:30]} 16. Ng5 {[%emt 0:05:30]} Qd7 {[%emt 0:00:30]} 17. f3 {[%emt 0:04:30]} Bd6 {[%emt 0:03:30]} 18. Bf4 {[%emt 0:12:30]} h6 {[%emt 0:02:30]} 19. Bxd6 {[%emt 0:07:30]} Qxd6 {[%emt 0:00:30]} 20. Nh3 {[%emt 0:00:00]} Nh5 {[%emt 0:03:30]} 21. Rae1 {[%emt 0:05:18]} e5 {[%emt 0:08:30]} 22. dxe5 {[%emt 0:02:47]} Nxe5 {[%emt 0:00:30]} 23. Nb4 {[%emt 0:00:30]} Rfd8 {[%emt 0:04:30]} 24. Qd4 {[%emt 0:02:26]} Nc6 {[%emt 0:01:30]} 25. Nxc6 {[%emt 0:01:03]} bxc6 {[%emt 0:00:30]} 26. Re5 {[%emt 0:04:53]} c5 {[%emt 0:02:30]} 27. Qe3 {[%emt 0:00:27]} Nf6 {[%emt 0:01:30]} 28. Re6 {[%emt 0:01:09]} Qb8 {[%emt 0:01:30]} 29. Qd2 {[%emt 0:02:08]} d4 {[%emt 0:03:30]} 30. cxd4 {[%emt 0:02:06]} cxd4 {[%emt 0:00:30]} 31. Rd1 {[%emt 0:02:02]} c3 {[%emt 0:00:30]} 32. bxc3 {[%emt 0:01:12]} dxc3 {[%emt 0:00:30]} 33. Qc2 {[%emt 0:01:28]} Rxd1+ {[%emt 0:00:30]} 34. Qxd1 {[%emt 0:00:13]} c2 {[%emt 0:03:30]} 35. Qc1 {[%emt 0:00:05]} Qb1 {[%emt 0:00:30]} 36. Re1 {[%emt 0:00:07]} Rb8 {[%emt 0:00:00]} 37. Kf2 {[%emt 0:00:53]} Qxa2 {[%emt 0:01:00]} 38. Re2 {[%emt 0:00:43]} Rc8 {[%emt 0:00:30]} 39. Nf4 {[%emt 0:00:51]} Qb1 {[%emt 0:01:30]} 40. Nd3 {[%emt 0:00:21]} a5 {[%emt 0:01:30]} 41. Qa3 {[%emt 0:01:31]} c1=Q {[%emt 0:03:30]} 42. Nxc1 {[%emt 0:00:49]} Rxc1 {[%emt 0:00:30]} 43. Qxa5 {[%emt 0:00:43]} Rf1+ {[%emt 0:00:30]} 44. Ke3 {[%emt 0:01:04]} Qc1+ {[%emt 0:00:00]} 45. Rd2 {[%emt 0:00:46]} Re1+ {[%emt 0:01:00]} 46. Kd3 {[%emt 0:00:34]} Qb1+ {[%emt 0:00:30]} 47. Kd4 {[%emt 0:00:12]} Qb8 {[%emt 0:01:30]} 48. Qa2+ {[%emt 0:00:43]} Kh8 {[%emt 0:00:00]} 49. Rb2 {[%emt 0:00:03]} Qe5+ {[%emt 0:01:00]} 50. Kc4 {[%emt 0:00:57]} Qe6+ {[%emt 0:00:30]} 51. Kc3 {[%emt 0:00:20]} Nd5+ {[%emt 0:00:00]} 52. Kd4 {[%emt 0:00:34]} Qe5+ {[%emt 0:00:00]} 53. Kc4 {[%emt 0:00:56]} Rc1+ {[%emt 0:00:30]} 54. Kb3 {[%emt 0:00:33]} Qb8+ {[%emt 0:00:30]} 55. Ka4 {[%emt 0:00:38]} Qa7+ {[%emt 0:00:00]} 56. Kb5 {[%emt 0:00:04]} Rc5# {[%emt 0:00:00]} 0-1

[Event "Turkish Women-ch Arzum 2022"]
[Site "Ayvalik"]
[Date "2022.03.05"]
[Round "1.24"]
[White "Kayis, Gulcan Sena"]
[Black "Bodur, Ilke Lal"]
[Result "1-0"]
[ECO "C47"]
[WhiteElo "1597"]
[BlackElo "1151"]
[Annotator "NA"]
[PlyCount "59"]
[EventDate "2022.03.04"]
[EventType "swiss"]
[EventCountry "TUR"]
[SourceTitle "playchess.com"]
[Source "ChessBase"]
[SourceQuality "1"]
[TimeControl "5400+30"]

1. e4 {[%emt 0:01:00]} e5 {[%emt 0:01:00]} 2. Nf3 {[%emt 0:00:00]} Nc6 {[%emt 0:00:30]} 3. Nc3 {[%emt 0:00:00]} Nf6 {[%emt 0:00:00]} 4. Be2 {[%emt 0:00:30]} Be7 {[%emt 0:02:00]} 5. O-O {[%emt 0:00:30]} O-O {[%emt 0:00:30]} 6. d4 {[%emt 0:00:30]} exd4 {[%emt 0:02:30]} 7. Nxd4 {[%emt 0:00:30]} d5 {[%emt 0:03:30]} 8. exd5 {[%emt 0:09:30]} Nxd5 {[%emt 0:07:30]} 9. Nxc6 {[%emt 0:00:30]} bxc6 {[%emt 0:02:30]} 10. Ne4 {[%emt 0:03:30]} Bd6 {[%emt 0:12:30]} 11. Bf3 {[%emt 0:06:30]} Be6 {[%emt 0:08:30]} 12. Re1 {[%emt 0:09:30]} Qd7 {[%emt 0:05:30]} 13. c4 {[%emt 0:06:30]} Ne7 {[%emt 0:10:30]} 14. Qa4 {[%emt 0:06:30]} Rfe8 {[%emt 0:22:03]} 15. Bg5 {[%emt 0:03:30]} Rab8 {[%emt 0:10:27]} 16. b3 {[%emt 0:06:30]} Nc8 {[%emt 0:04:35]} 17. c5 {[%emt 0:19:30]} Be5 {[%emt 0:01:27]} 18. Rad1 {[%emt 0:00:30]} Bd5 {[%emt 0:00:08]} 19. Rxd5 {[%emt 0:05:11]} Qxd5 {[%emt 0:03:06]} 20. Nf6+ {[%emt 0:00:29]} gxf6 {[%emt 0:00:37]} 21. Bxd5 {[%emt 0:00:07]} Bxh2+ {[%emt 0:00:00]} 22. Kxh2 {[%emt 0:01:14]} Rxe1 {[%emt 0:00:06]} 23. Bd2 {[%emt 0:00:21]} Re2 {[%emt 0:02:17]} 24. Qg4+ {[%emt 0:00:07]} Kf8 {[%emt 0:00:00]} 25. Bh6+ {[%emt 0:00:49]} Ke8 {[%emt 0:00:04]} 26. Qxe2+ {[%emt 0:00:14]} Kd7 {[%emt 0:00:30]} 27. Qg4+ {[%emt 0:00:00]} Ke7 {[%emt 0:00:00]} 28. Bxc6 {[%emt 0:00:28]} Nb6 {[%emt 0:00:53]} 29. Qe4+ {[%emt 0:00:00]} Kd8 {[%emt 0:00:19]} 30. Qe8# {[%emt 0:00:00]} 1-0